bitfinex/quotes_BTCUSD_20211001
["timestamp","ask_amount","ask_price","bid_price","bid_amount"]
[1633063835671,0.26324546,43517.0,43515.0,0.18201194]
[1633063835672,0.24865704,43516.0,43515.0,0.18201194]
[1633063835870,0.24865704,43516.0,43514.0,0.41565369]
[1633063836072,0.01960872,43515.0,43514.0,0.43365369]
[1633063836271,0.573973,43515.0,43514.0,0.61618835]
[1633063836672,0.673973,43515.0,43514.0,0.61618835]
[1633063836871,0.673973,43515.0,43514.0,0.15629]
[1633063837270,0.673973,43515.0,43514.0,0.3448996]
[1633063837470,0.673973,43515.0,43514.0,0.3268996]
[1633063837871,0.673973,43515.0,43514.0,0.13829]
[1633063838072,0.703973,43515.0,43514.0,0.33004561]
[1633063840071,0.700973,43515.0,43514.0,0.33004561]
[1633063840472,0.600973,43515.0,43514.0,0.33004561]
[1633063840875,0.600973,43515.0,43514.0,0.31204561]
[1633063840876,0.573973,43515.0,43514.0,0.31204561]
[1633063841072,0.229135,43515.0,43514.0,0.31204561]
[1633063842075,0.257135,43515.0,43514.0,0.32804561]
[1633063842473,0.257135,43515.0,43514.0,0.15429]
[1633063842674,0.32799627,43515.0,43514.0,0.016]
[1633063843476,0.32799627,43515.0,43514.0,0.23640416]
[1633063843881,0.29999627,43515.0,43514.0,0.22040416]
[1633063844076,0.32799627,43515.0,43514.0,0.23640416]
[1633063844877,0.32799627,43515.0,43514.0,0.41639129]
[1633063845078,0.32799627,43515.0,43514.0,0.23640416]
[1633063845278,0.32799627,43515.0,43514.0,0.35256416]
[1633063845481,0.29999627,43515.0,43514.0,0.33656416]
[1633063846078,0.29999627,43515.0,43514.0,0.35156416]
[1633063846277,0.32599627,43515.0,43514.0,0.35156416]
[1633063846479,0.22599627,43515.0,43514.0,0.35156416]
[1633063847479,0.22599627,43515.0,43514.0,0.33656416]
[1633063847480,0.19999627,43515.0,43514.0,0.33656416]
[1633063847884,0.129135,43515.0,43514.0,0.5220194]
[1633063848083,0.027,43515.0,43514.0,0.5370194]
[1633063848482,0.027,43515.0,43514.0,0.54062065]
[1633063848686,0.027,43515.0,43514.0,0.76975065]
[1633063848881,0.027,43515.0,43514.0,0.84349734]
[1633063849282,0.027,43515.0,43514.0,0.84296724]
[1633063849481,0.344812,43518.0,43514.0,0.82796724]
[1633063849680,0.344812,43518.0,43514.0,0.59883724]
[1633063849881,0.02060946,43517.0,43514.0,0.59883724]
[1633063850280,0.02060946,43517.0,43514.0,0.62083724]
[1633063850481,0.370812,43518.0,43514.0,0.62083724]
[1633063851346,0.370812,43518.0,43514.0,0.59883724]
[1633063851546,0.344812,43518.0,43514.0,0.59883724]
[1633063852146,0.371812,43518.0,43514.0,0.62083724]
[1633063853553,0.344812,43518.0,43514.0,0.52562065]
[1633063853950,0.344812,43518.0,43514.0,0.5220194]
[1633063854149,0.369812,43518.0,43514.0,0.5440194]
[1633063854556,0.369812,43518.0,43514.0,0.63553373]
[1633063854951,0.369812,43518.0,43514.0,0.5440194]
[1633063855354,0.369812,43518.0,43514.0,0.5220194]
[1633063855553,0.344812,43518.0,43514.0,0.5220194]
[1633063855960,0.344812,43518.0,43514.0,0.60581075]
[1633063856153,0.370812,43518.0,43514.0,0.62781075]
[1633063857359,0.344812,43518.0,43514.0,0.60581075]
[1633063858161,0.026,43518.0,43514.0,0.62781075]
[1633063858371,0.026,43518.0,43517.0,0.00127021]
[1633063858567,0.026,43518.0,43517.0,0.15550138]
[1633063858764,0.026,43518.0,43517.0,0.34580909]
[1633063859562,0.17761241,43529.0,43517.0,0.56900909]
[1633063859762,0.17761241,43529.0,43517.0,0.22109909]
[1633063859961,0.9298,43531.0,43518.0,0.0005301]
[1633063860165,0.019,43529.0,43525.0,0.1839451]
[1633063860363,0.70981888,43528.0,43526.0,0.19409085]
[1633063860564,0.48068888,43528.0,43526.0,0.19409085]
[1633063860761,0.02297167,43527.0,43526.0,0.19409085]
[1633063861762,0.09963197,43527.0,43526.0,0.19409085]
[1633063862166,0.032,43527.0,43526.0,0.21409085]
[1633063862361,0.376747,43527.0,43526.0,0.21409085]
[1633063862962,0.376747,43527.0,43526.0,0.02]
[1633063863362,0.376747,43527.0,43525.0,0.40163225]
[1633063863561,0.344747,43527.0,43525.0,0.40163225]
[1633063863765,0.344747,43527.0,43525.0,0.30397675]
[1633063863961,0.02245476,43526.0,43525.0,0.30397675]
[1633063864163,0.02245476,43526.0,43525.0,0.10663]
[1633063864369,0.373747,43527.0,43525.0,0.12863]
[1633063865166,0.373747,43527.0,43525.0,0.022]
[1633063865368,0.33036651,43526.0,43525.0,0.022]
[1633063865568,0.33036651,43526.0,43514.0,1.15580416]
[1633063865765,0.31857766,43521.0,43514.0,1.15580416]
[1633063865963,0.19573338,43521.0,43516.0,0.22913]
[1633063866166,0.02498863,43520.0,43516.0,0.22913]
[1633063866566,0.344832,43518.0,43516.0,0.22913]
[1633063866769,0.02213478,43517.0,43516.0,0.22913]
[1633063867368,0.02213478,43517.0,43515.0,0.024]
[1633063867566,0.02213478,43517.0,43514.0,0.29337199]
[1633063867768,0.344824,43517.0,43514.0,0.29337199]
[1633063867966,0.02193418,43516.0,43514.0,0.29337199]
[1633063868166,0.02193418,43516.0,43514.0,3.06769911]
[1633063868367,0.02193418,43516.0,43515.0,0.22913]
[1633063868568,0.364824,43517.0,43515.0,0.22913]
[1633063868767,0.364824,43517.0,43515.0,0.23332108]
[1633063869568,0.344824,43517.0,43516.0,0.00645723]
[1633063869766,0.344824,43517.0,43516.0,0.13117123]
[1633063870168,0.367824,43517.0,43516.0,0.15417123]
[1633063870368,0.023,43517.0,43516.0,0.15417123]
[1633063872270,0.023,43517.0,43516.0,0.02945723]
[1633063872670,0.023,43517.0,43516.0,0.25858723]
[1633063873470,0.16436966,43521.0,43516.0,0.00645723]
[1633063873670,0.01343304,43520.0,43514.0,0.22040416]
[1633063874273,0.03243304,43520.0,43514.0,0.24640416]
[1633063874472,0.019,43520.0,43515.0,0.22913]
[1633063874671,0.019,43520.0,43516.0,0.09310179]
[1633063874870,0.019,43520.0,43517.0,0.124709]
[1633063875671,0.60550778,43523.0,43514.0,0.22040416]
[1633063875672,0.26071578,43523.0,43514.0,0.22040416]
[1633063875871,0.08919906,43522.0,43514.0,0.22040416]
[1633063876073,0.02478605,43520.0,43514.0,0.22040416]
[1633063876275,0.06563573,43522.0,43514.0,0.24640416]
[1633063876675,0.06563573,43522.0,43515.0,0.09705208]
[1633063876676,0.02126669,43521.0,43515.0,0.09705208]
[1633063877075,0.02126669,43521.0,43517.0,0.24670816]
[1633063877273,0.36606069,43521.0,43517.0,0.24670816]
[1633063877674,0.02135612,43520.0,43517.0,0.24670816]
[1633063878273,0.024,43520.0,43517.0,0.26870816]
[1633063878874,0.02052417,43519.0,43517.0,0.26870816]
[1633063879674,0.02052417,43519.0,43517.0,0.24670816]
[1633063880276,0.04452417,43519.0,43517.0,0.26870816]
[1633063880479,0.024,43519.0,43517.0,0.26870816]
[1633063880677,0.024,43519.0,43518.0,0.22913]
[1633063880877,0.024,43519.0,43518.0,0.35613937]
[1633063881077,0.024,43519.0,43518.0,0.35560927]
[1633063881478,0.024,43519.0,43518.0,0.35574828]
[1633063881679,0.06582235,43524.0,43518.0,0.35574828]
[1633063881881,0.06582235,43524.0,43518.0,0.12661828]
[1633063882279,0.06582235,43524.0,43518.0,0.15861828]
[1633063882280,0.06581344,43523.0,43518.0,0.15861828]
[1633063882481,0.02240689,43522.0,43518.0,0.03759828]
[1633063882879,0.07182061,43524.0,43518.0,0.03759828]
[1633063883081,0.06581403,43523.0,43518.0,0.03759828]
[1633063883279,0.06581403,43523.0,43519.0,0.23127528]
[1633063883679,0.06581382,43523.0,43519.0,0.23127528]
[1633063884080,0.06582452,43524.0,43519.0,0.23127528]
[1633063884279,0.06582452,43524.0,43519.0,0.26127528]
[1633063884280,0.07382162,43523.0,43519.0,0.26127528]
[1633063885280,0.008,43523.0,43519.0,0.26127528]
[1633063885683,0.41049059,43524.0,43519.0,0.23127528]
[1633063885885,0.06572059,43524.0,43519.0,0.23127528]
[1633063886282,0.06572059,43524.0,43519.0,0.26327528]
[1633063886283,0.07472059,43524.0,43519.0,0.26327528]
[1633063886881,0.02060516,43523.0,43519.0,0.26327528]
[1633063887146,0.08632373,43523.0,43519.0,0.26327528]
[1633063887343,0.07472709,43524.0,43519.0,0.26327528]
[1633063887745,0.06572709,43524.0,43519.0,0.23127528]
[1633063888345,0.06572709,43524.0,43519.0,0.26327528]
[1633063888346,0.07572709,43524.0,43519.0,0.26327528]
[1633063888748,0.07572709,43524.0,43520.0,0.22913]
[1633063889748,0.06572709,43524.0,43520.0,0.22913]
[1633063890247,0.06572709,43524.0,43520.0,0.25913]
[1633063890447,0.08472709,43524.0,43520.0,0.25913]
[1633063890847,0.08472709,43524.0,43520.0,0.03]
[1633063891651,0.06572709,43524.0,43518.0,0.00559828]
[1633063891847,0.06572709,43524.0,43519.0,0.22913]
[1633063892450,0.08272709,43524.0,43519.0,0.22913]
[1633063892849,0.08272709,43524.0,43519.0,0.44640031]
[1633063893650,0.06572709,43524.0,43519.0,0.44640031]
[1633063893851,0.06572709,43524.0,43519.0,0.22913]
[1633063894455,0.08272709,43524.0,43519.0,0.26113]
[1633063894651,0.07772709,43524.0,43519.0,0.26113]
[1633063894853,0.07772709,43524.0,43520.0,0.19481518]
[1633063895054,0.1,43529.0,43523.0,0.02348763]
[1633063895256,0.9618,43532.0,43524.0,0.47794949]
[1633063895455,0.07968901,43531.0,43525.0,0.0005301]
[1633063895655,0.13162584,43534.0,43526.0,0.147527]
[1633063895855,0.11015058,43535.0,43530.0,0.2232]
[1633063896070,0.23331967,43538.0,43537.0,0.00128768]
[1633063896259,0.344571,43551.0,43538.0,0.08723743]
[1633063896454,0.574527,43553.0,43547.0,0.12178]
[1633063896657,1.32913,43548.0,43547.0,0.24068]
[1633063896856,1.32913,43548.0,43546.0,0.0565]
[1633063896857,0.69740164,43547.0,43546.0,0.0565]
[1633063897055,0.94959713,43547.0,43539.0,0.17917831]
[1633063897255,0.34465,43542.0,43538.0,0.08723743]
[1633063897456,0.56511397,43545.0,43539.0,0.17411378]
[1633063897656,0.56511397,43545.0,43538.0,0.08723743]
[1633063897853,0.29684691,43544.0,43538.0,0.08723743]
[1633063898252,0.01714343,43543.0,43538.0,0.08723743]
[1633063898452,0.01714343,43543.0,43538.0,0.11223743]
[1633063898855,0.01714343,43543.0,43539.0,0.22913]
[1633063899456,0.23400985,43544.0,43539.0,0.22913]
[1633063899654,0.20700985,43544.0,43539.0,0.22913]
[1633063899853,0.20700985,43544.0,43538.0,0.17217044]
[1633063900452,0.23100985,43544.0,43538.0,0.11423743]
[1633063901452,0.23100985,43544.0,43538.0,0.19584195]
[1633063901652,0.20700985,43544.0,43538.0,0.16884195]
[1633063902055,0.20700985,43544.0,43539.0,0.22913]
[1633063902457,0.23000985,43544.0,43539.0,0.22913]
[1633063902661,0.23000985,43544.0,43541.0,0.34456]
[1633063902857,0.023,43544.0,43541.0,0.34456]
[1633063903659,0.09740164,43547.0,43542.0,0.22913]
[1633063903858,0.19745881,43545.0,43541.0,0.34456]
[1633063904059,0.01648642,43544.0,43541.0,0.34456]
[1633063904259,0.01648642,43544.0,43542.0,0.22913]
[1633063904458,0.02,43545.0,43542.0,0.22913]
[1633063905264,0.02,43545.0,43543.0,0.35466488]
[1633063905460,0.02,43545.0,43543.0,0.01012388]
[1633063905658,0.19565224,43546.0,43538.0,0.08723743]
[1633063905858,0.01647989,43545.0,43538.0,0.08723743]
[1633063906458,0.04647989,43545.0,43538.0,0.32684493]
[1633063906664,0.344643,43542.0,43538.0,0.32684493]
[1633063907059,0.04647989,43545.0,43538.0,0.32684493]
[1633063907259,0.03,43545.0,43538.0,0.32684493]
[1633063907861,0.29565224,43546.0,43538.0,0.30384493]
[1633063908066,0.19565224,43546.0,43538.0,0.30384493]
[1633063908459,0.22165224,43546.0,43538.0,0.32684493]
[1633063908858,0.22165224,43546.0,43538.0,0.11023743]
[1633063909665,0.19565224,43546.0,43539.0,0.22913]
[1633063910465,0.22065224,43546.0,43539.0,0.25313]
[1633063910661,0.22065224,43546.0,43539.0,0.024]
[1633063911063,0.22065224,43546.0,43540.0,0.22913]
[1633063911262,0.22065224,43546.0,43541.0,0.344551]
[1633063912264,0.19565224,43546.0,43541.0,0.344551]
[1633063912464,0.22565224,43546.0,43541.0,0.368551]
[1633063913070,0.03,43546.0,43542.0,0.64107062]
[1633063913368,0.03,43546.0,43544.0,0.02848643]
[1633063913572,0.03,43546.0,43545.0,0.35357272]
[1633063913765,0.09740164,43547.0,43545.0,0.37539585]
[1633063913967,0.09740164,43547.0,43546.0,0.27164187]
[1633063914167,0.09740164,43547.0,43546.0,0.50074887]
[1633063914767,0.09740164,43547.0,43546.0,0.52033078]
[1633063915372,0.11991966,43547.0,43546.0,0.52033078]
[1633063916367,0.12991966,43547.0,43546.0,0.55333078]
[1633063917970,0.12991966,43547.0,43546.0,0.37662705]
[1633063918174,0.17991966,43547.0,43546.0,0.28168891]
[1633063918370,0.36765151,43547.0,43546.0,0.034]
[1633063918574,0.20051643,43547.0,43546.0,0.034]
[1633063919173,0.48086483,43547.0,43546.0,0.034]
[1633063919372,0.47958569,43547.0,43546.0,0.034]
[1633063919577,0.89420046,43547.0,43546.0,0.034]
[1633063919775,1.26766496,43547.0,43546.0,0.034]
[1633063920372,1.26766496,43547.0,43546.0,0.019]
[1633063920572,1.10508019,43547.0,43546.0,0.019]
[1633063920775,1.10508019,43547.0,43538.0,0.38032772]
[1633063920776,0.91741335,43547.0,43538.0,0.38032772]
[1633063920973,0.28800572,43547.0,43538.0,0.38032772]
[1633063921171,0.28800572,43547.0,43538.0,0.08723743]
[1633063921570,0.01697057,43546.0,43538.0,0.08723743]
[1633063921973,0.344618,43543.0,43538.0,0.08723743]
[1633063922175,0.23723156,43540.0,43538.0,0.08723743]
[1633063922374,0.25252199,43539.0,43538.0,0.08723743]
[1633063922671,0.26906161,43539.0,43538.0,0.11323743]
[1633063922871,0.18089068,43539.0,43538.0,0.11323743]
[1633063923074,0.0012764,43542.0,43538.0,0.11323743]
[1633063923276,0.344634,43541.0,43538.0,0.11323743]
[1633063923471,0.61951376,43541.0,43538.0,0.11323743]
[1633063923673,0.61951376,43541.0,43538.0,0.08723743]
[1633063923878,0.61951376,43541.0,43539.0,0.22913]
[1633063924073,0.394634,43541.0,43539.0,0.22913]
[1633063924275,0.394634,43541.0,43538.0,0.08723743]
[1633063924475,0.01739088,43540.0,43539.0,0.025]
[1633063924875,0.394634,43541.0,43539.0,0.025]
[1633063925074,0.24140467,43540.0,43539.0,0.025]
[1633063925275,0.33790017,43540.0,43539.0,0.025]
[1633063925676,0.33790017,43540.0,43538.0,0.08723743]
[1633063925878,0.01686739,43539.0,43538.0,0.08723743]
[1633063926078,0.33790017,43540.0,43538.0,0.08723743]
[1633063926478,0.33790017,43540.0,43538.0,0.11223743]
[1633063926681,0.68253617,43540.0,43538.0,0.11223743]
[1633063926879,0.46364952,43540.0,43538.0,0.11223743]
[1633063927079,0.36715402,43540.0,43538.0,0.11223743]
[1633063928280,0.36715402,43540.0,43538.0,0.08723743]
[1633063928483,0.36715402,43540.0,43538.0,0.11323743]
[1633063929878,0.36715402,43540.0,43538.0,0.08723743]
[1633063930480,0.36715402,43540.0,43538.0,0.11323743]
[1633063931278,0.02251802,43540.0,43538.0,0.11323743]
[1633063931879,0.02251802,43540.0,43538.0,0.08723743]
[1633063932083,0.02251802,43541.0,43538.0,0.08723743]
[1633063932281,0.36714802,43541.0,43538.0,0.08723743]
[1633063932481,0.36714802,43541.0,43538.0,0.11323743]
[1633063933585,0.02251802,43541.0,43538.0,0.11323743]
[1633063933783,0.02251802,43541.0,43538.0,0.08723743]
[1633063934587,0.02251802,43541.0,43538.0,0.11323743]
[1633063934787,0.0168564,43540.0,43538.0,0.11323743]
[1633063935048,0.02251802,43541.0,43538.0,0.11323743]
[1633063935847,0.02251802,43541.0,43538.0,0.08723743]
[1633063936549,0.02251802,43541.0,43538.0,0.11323743]
[1633063937147,0.36714402,43541.0,43538.0,0.11323743]
[1633063937549,0.41714402,43541.0,43538.0,0.11323743]
[1633063937749,0.41714402,43541.0,43538.0,0.08723743]
[1633063938550,0.41714402,43541.0,43538.0,0.11323743]
[1633063939551,0.07251802,43541.0,43538.0,0.11323743]
[1633063939750,0.02251802,43541.0,43538.0,0.11323743]
[1633063939950,0.02251802,43541.0,43538.0,0.08723743]
[1633063940550,0.02251802,43541.0,43538.0,0.11323743]
[1633063941553,0.02251802,43541.0,43539.0,0.00809738]
[1633063941755,0.02251802,43541.0,43540.0,0.22913]
[1633063941952,0.02251802,43541.0,43539.0,0.00809738]
[1633063942153,0.02251802,43541.0,43539.0,0.00902557]
[1633063942552,0.02251802,43541.0,43539.0,0.03402557]
[1633063943557,0.02251802,43541.0,43539.0,0.025]
[1633063943753,0.02251802,43541.0,43538.0,0.03284394]
[1633063944553,0.02251802,43541.0,43538.0,0.05884394]
[1633063945357,0.02251802,43541.0,43539.0,0.22913]
[1633063945556,0.02251802,43543.0,43539.0,0.22913]
[1633063946158,0.02251802,43543.0,43540.0,0.01804482]
[1633063946357,0.02251802,43543.0,43541.0,0.12449]
[1633063946557,0.02251802,43543.0,43540.0,0.01804482]
[1633063946558,0.02251802,43543.0,43540.0,0.11374284]
[1633063946758,0.02251802,43543.0,43541.0,0.24817445]
[1633063947158,0.02251802,43543.0,43542.0,0.01164612]
[1633063947357,0.08646863,43543.0,43542.0,0.01164612]
[1633063947758,0.08647077,43543.0,43542.0,0.01164612]
[1633063947958,0.08647077,43543.0,43540.0,0.344551]
[1633063948157,0.08647077,43543.0,43541.0,0.22913]
[1633063948158,0.02251802,43543.0,43541.0,0.22913]
[1633063948359,0.06397639,43542.0,43541.0,0.22913]
[1633063948761,0.15442341,43546.0,43541.0,0.22913]
[1633063948961,0.06398303,43545.0,43540.0,0.369551]
[1633063949164,0.08465628,43545.0,43540.0,0.369551]
[1633063949360,0.06400467,43544.0,43540.0,0.369551]
[1633063949562,0.06400467,43544.0,43541.0,0.22913]
[1633063949763,0.02251802,43546.0,43541.0,0.22913]
[1633063949962,0.06401343,43545.0,43540.0,0.344551]
[1633063950563,0.06401343,43545.0,43540.0,0.370551]
[1633063950962,0.06401343,43545.0,43543.0,0.2207758]
[1633063951362,0.06401343,43545.0,43544.0,0.01747692]
[1633063952562,0.06401343,43545.0,43544.0,0.03747692]
[1633063952766,0.06398543,43545.0,43544.0,0.03747692]
[1633063952964,0.06398223,43546.0,43544.0,0.26660692]
[1633063953163,0.02251802,43545.0,43544.0,0.26660692]
[1633063953363,0.08649706,43545.0,43544.0,0.26660692]
[1633063953962,0.08649706,43545.0,43544.0,0.24660692]
[1633063954366,0.02251802,43545.0,43544.0,0.24660692]
[1633063954563,0.02251802,43545.0,43544.0,0.24913]
[1633063955565,0.02251802,43545.0,43544.0,0.41734734]
[1633063955767,0.14740164,43547.0,43544.0,0.41734734]
[1633063955768,0.02251802,43546.0,43544.0,0.41734734]
[1633063955967,0.02251802,43546.0,43545.0,0.17091359]
[1633063956164,0.02251802,43546.0,43545.0,0.29536159]
[1633063956564,0.02251802,43546.0,43545.0,0.41731046]
[1633063956767,0.04333516,43546.0,43545.0,0.148448]
[1633063957368,0.02251802,43546.0,43545.0,0.148448]
[1633063957968,0.02251802,43546.0,43545.0,0.29279578]
[1633063958769,0.02251802,43546.0,43545.0,0.32479578]
[1633063959969,0.02251802,43546.0,43545.0,0.63731078]
[1633063960367,0.02251802,43546.0,43545.0,0.65448289]
[1633063960567,0.02251802,43546.0,43545.0,0.68348289]
[1633063961967,0.02251802,43546.0,43545.0,0.65448289]
[1633063962773,0.02251802,43546.0,43545.0,0.68948289]
[1633063963970,0.02251802,43546.0,43545.0,0.65448289]
[1633063964371,0.02251802,43546.0,43545.0,1.86848289]
[1633063964774,0.02251802,43546.0,43545.0,1.90448289]
[1633063964972,0.02251802,43546.0,43545.0,1.90501299]
[1633063965172,0.02251802,43546.0,43545.0,1.90873081]
[1633063965573,0.02251802,43546.0,43545.0,1.90926091]
[1633063965774,0.02251802,43546.0,43545.0,1.90873081]
[1633063965973,0.02251802,43546.0,43545.0,1.87273081]
[1633063966373,0.02251802,43546.0,43545.0,1.70438303]
[1633063966774,0.02251802,43546.0,43545.0,1.73738303]
[1633063967776,0.02251802,43546.0,43545.0,1.73791313]
[1633063967975,0.02251802,43546.0,43545.0,1.70491313]
[1633063968580,0.02251802,43546.0,43545.0,1.70438303]
[1633063968779,0.02251802,43546.0,43545.0,1.9713929]
[1633063969777,0.02251802,43546.0,43545.0,1.971923]
[1633063969979,0.02251802,43546.0,43545.0,1.70438303]
[1633063970777,0.02251802,43546.0,43545.0,1.73638303]
[1633063971378,0.02251802,43546.0,43545.0,1.73716043]
[1633063971777,0.02251802,43546.0,43545.0,1.73769053]
[1633063971976,0.02251802,43546.0,43545.0,1.70516043]
[1633063972776,0.02251802,43546.0,43545.0,1.73716043]
[1633063972977,0.02251802,43546.0,43545.0,1.73769053]
[1633063973176,0.02251802,43546.0,43545.0,1.73693795]
[1633063973584,0.02251802,43546.0,43545.0,1.73640785]
[1633063973978,0.02251802,43546.0,43545.0,1.70440785]
[1633063974782,0.02251802,43546.0,43545.0,1.73640785]
[1633063975383,0.02251802,43546.0,43545.0,1.73693795]
[1633063975781,0.02251802,43546.0,43545.0,1.73640785]
[1633063977048,0.02251802,43546.0,43545.0,1.75930785]
[1633063977183,0.02251802,43546.0,43545.0,1.75983795]
[1633063977982,0.02251802,43546.0,43545.0,1.72783795]
[1633063978383,0.02251802,43546.0,43545.0,1.72730785]
[1633063978783,0.02251802,43546.0,43545.0,1.76030785]
[1633063980061,0.02251802,43546.0,43545.0,1.72730785]
[1633063980787,0.02251802,43546.0,43545.0,1.76230785]
[1633063981193,0.02251802,43546.0,43545.0,1.86230785]
[1633063981991,0.02251802,43546.0,43545.0,1.82730785]
[1633063982787,0.02251802,43546.0,43545.0,1.86330785]
[1633063984191,0.02251802,43546.0,43545.0,1.82730785]
[1633063984790,0.02251802,43546.0,43545.0,1.86230785]
[1633063985189,0.02251802,43546.0,43545.0,1.86283795]
[1633063985790,0.02251802,43546.0,43545.0,1.86230785]
[1633063985990,0.02251802,43546.0,43545.0,1.82730785]
[1633063986792,0.02251802,43546.0,43545.0,1.86130785]
[1633063987192,0.31231554,43549.0,43547.0,0.09740164]
[1633063987395,0.31231554,43549.0,43548.0,2.50334472]
[1633063988792,0.31231554,43549.0,43548.0,2.63634472]
[1633063988992,0.31231554,43549.0,43548.0,2.53634472]
[1633063989398,0.31231554,43549.0,43548.0,2.35905883]
[1633063989992,0.31231554,43549.0,43548.0,2.32605883]
[1633063990797,0.31231554,43549.0,43548.0,2.35805883]
[1633063992060,0.31231554,43549.0,43548.0,2.32605883]
[1633063992796,0.31231554,43549.0,43548.0,2.36005883]
[1633063993596,0.31231554,43549.0,43548.0,2.46005883]
[1633063993999,0.31231554,43549.0,43548.0,2.42605883]
[1633063994796,0.31231554,43549.0,43548.0,2.45905883]
[1633063996002,0.31231554,43549.0,43548.0,2.42605883]
[1633063996799,0.31231554,43549.0,43548.0,2.45905883]
[1633063997399,0.31231554,43549.0,43548.0,2.35905883]
[1633063997999,0.32753688,43549.0,43548.0,2.34464466]
[1633063998202,0.31231554,43549.0,43548.0,2.31164466]
[1633063999001,0.31231554,43549.0,43548.0,2.34564466]
[1633063999807,0.4782287,43549.0,43548.0,0.263107]
[1633064000018,0.52947044,43549.0,43539.0,0.06626626]
[1633064000208,0.00127991,43540.0,43538.0,0.09912563]
[1633064000412,0.00129063,43541.0,43539.0,0.22907]
[1633064000611,0.00129063,43541.0,43538.0,0.03284394]
[1633064000807,0.00129063,43541.0,43538.0,0.06084394]
[1633064000808,0.01721635,43540.0,43538.0,0.06084394]
[1633064001077,0.19596433,43540.0,43539.0,0.21906085]
[1633064001210,0.19596433,43540.0,43538.0,0.06084394]
[1633064001406,0.19137679,43539.0,43538.0,0.06084394]
[1633064001606,0.19137679,43539.0,43538.0,0.28991394]
[1633064002208,0.02314443,43539.0,43538.0,0.26191394]
[1633064002605,0.18942046,43539.0,43538.0,0.26191394]
[1633064002805,0.21242046,43539.0,43538.0,0.28791394]
[1633064003006,0.21242046,43539.0,43538.0,0.47995839]
[1633064003207,0.20993247,43539.0,43538.0,0.47995839]
[1633064004411,0.18693247,43539.0,43538.0,0.45395839]
[1633064004812,0.18693247,43539.0,43538.0,0.48095839]
[1633064004813,0.20993247,43539.0,43538.0,0.48095839]
[1633064005807,0.04614443,43539.0,43538.0,0.48095839]
[1633064006414,0.02314443,43539.0,43538.0,0.45395839]
[1633064006610,0.1877271,43539.0,43538.0,0.45395839]
[1633064007084,0.1877271,43539.0,43538.0,0.47995839]
[1633064007085,0.2137271,43539.0,43538.0,0.47995839]
[1633064007412,0.04914443,43539.0,43538.0,0.47995839]
[1633064007612,0.026,43539.0,43538.0,0.47995839]
[1633064008812,0.026,43539.0,43538.0,0.50995839]
[1633064008813,0.06465536,43539.0,43538.0,0.50995839]
[1633064009015,0.024,43539.0,43538.0,0.48395839]
[1633064009413,0.33309133,43546.0,43538.0,0.45395839]
[1633064009614,0.01420209,43545.0,43538.0,0.45395839]
[1633064010817,0.03820209,43545.0,43541.0,2.8755074]
[1633064011013,0.03820209,43545.0,43542.0,0.12381]
[1633064011616,0.01449283,43544.0,43542.0,0.12381]
[1633064012613,0.01449283,43544.0,43538.0,0.3016816]
[1633064012813,0.04349283,43544.0,43542.0,0.025]
[1633064013076,0.01411735,43543.0,43542.0,0.025]
[1633064013617,0.029,43544.0,43542.0,0.025]
[1633064014317,0.394591,43545.0,43538.0,0.3016816]
[1633064014520,0.394591,43545.0,43539.0,0.22907]
[1633064014919,0.418591,43545.0,43539.0,0.22907]
[1633064015318,0.074,43545.0,43539.0,0.22907]
[1633064015521,0.024,43545.0,43539.0,0.22907]
[1633064016319,0.23991997,43546.0,43539.0,0.22907]
[1633064016520,0.23991997,43546.0,43545.0,0.20307219]
[1633064016725,0.2576279,43546.0,43540.0,0.08952457]
[1633064016918,0.01459971,43545.0,43539.0,0.029]
[1633064017119,0.01459971,43545.0,43540.0,0.22907]
[1633064017719,0.26491997,43546.0,43540.0,0.22907]
[1633064017919,0.26491997,43546.0,43544.0,0.24156648]
[1633064018318,0.23991997,43546.0,43544.0,0.24156648]
[1633064018919,0.26391997,43546.0,43544.0,0.26556648]
[1633064019522,0.074,43546.0,43544.0,0.26556648]
[1633064019721,0.024,43546.0,43544.0,0.26556648]
[1633064020323,0.00125416,43547.0,43544.0,0.24156648]
[1633064020723,0.01400698,43546.0,43544.0,0.24156648]
[1633064020924,0.02125416,43547.0,43544.0,0.27056648]
[1633064021124,0.02,43547.0,43544.0,0.27056648]
[1633064022386,0.344568,43548.0,43544.0,0.24156648]
[1633064022585,0.36231554,43549.0,43544.0,0.24156648]
[1633064022586,0.01642535,43547.0,43544.0,0.24156648]
[1633064022987,0.03942535,43547.0,43544.0,0.26656648]
[1633064023387,0.01713703,43546.0,43544.0,0.24156648]
[1633064024589,0.36231554,43549.0,43544.0,0.24156648]
[1633064024788,0.01531872,43548.0,43544.0,0.24156648]
[1633064024987,0.023,43546.0,43544.0,0.26656648]
[1633064025192,0.01570426,43545.0,43544.0,0.26656648]
[1633064026189,0.01570426,43545.0,43544.0,0.24156648]
[1633064026988,0.03770426,43545.0,43544.0,0.26556648]
[1633064027193,0.022,43545.0,43544.0,0.49463648]
[1633064027591,0.03602138,43545.0,43544.0,0.49463648]
[1633064027789,0.022,43545.0,43544.0,0.49463648]
[1633064028793,0.36231554,43549.0,43544.0,0.47063648]
[1633064028994,0.023,43545.0,43544.0,0.26456648]
[1633064029199,0.023,43545.0,43544.0,0.49363648]
[1633064029200,0.03795277,43545.0,43544.0,0.49363648]
[1633064029799,0.023,43545.0,43544.0,0.49363648]
[1633064030198,0.344576,43547.0,43544.0,0.47063648]
[1633064030398,0.36231554,43549.0,43545.0,0.123764]
[1633064030611,0.31231554,43549.0,43546.0,0.0005301]
[1633064030797,0.31231554,43549.0,43547.0,0.0229]
[1633064031002,0.31231554,43549.0,43548.0,0.16658788]
[1633064031399,0.31231554,43549.0,43548.0,0.09872062]
[1633064031804,0.32642494,43549.0,43548.0,0.09872062]
[1633064031999,0.3265342,43549.0,43548.0,0.35069062]
[1633064032201,0.3124248,43549.0,43548.0,0.35069062]
[1633064033001,0.3434248,43549.0,43548.0,0.37469062]
[1633064034204,0.3434248,43549.0,43548.0,0.35069062]
[1633064034403,0.3124248,43549.0,43548.0,0.35069062]
[1633064034606,0.3124248,43549.0,43548.0,0.25197]
[1633064035004,0.3434248,43549.0,43548.0,0.27497]
[1633064035402,0.3434248,43549.0,43548.0,0.44664774]
[1633064035604,0.3434248,43549.0,43548.0,0.54274354]
[1633064036204,0.3124248,43549.0,43548.0,0.51974354]
[1633064036605,0.3124248,43549.0,43548.0,1.73374354]
[1633064037003,0.3434248,43549.0,43548.0,1.75674354]
[1633064037609,0.3434248,43549.0,43548.0,1.5850658]
[1633064037803,0.3434248,43549.0,43548.0,1.59265986]
[1633064038205,0.3434248,43549.0,43548.0,1.70058986]